fUST/lending_fUST_20251004
["ID","MTS","AMOUNT","RATE_DAILY","PERIOD"]
[389140046,1759589471676,-362.93848032,0.00020547,2]
[389140047,1759589471686,-500.0,0.00020547,2]
[389140048,1759589471695,-1794.32,0.00020547,2]
[389140049,1759589471705,-500.0,0.00020547,2]
[389140050,1759589471715,-745.49,0.00020547,2]
[389140051,1759589471724,-1672.81,0.00020547,2]
[389140052,1759589471733,-1070.06,0.00020547,2]
[389140053,1759589471743,-681.98,0.00020547,2]
[389140054,1759589471752,-500.0,0.00020547,2]
[389140055,1759589471762,-777.54,0.00020547,2]
[389140056,1759589471771,-500.0,0.00020547,2]
[389140057,1759589471781,-3253.14,0.00020547,2]
[389140058,1759589471791,-500.0,0.00020547,2]
[389140059,1759589471800,-1538.22,0.00020547,2]
[389140060,1759589471810,-956.6,0.00020547,2]
[389140061,1759589471820,-1062.26,0.00020547,2]
[389140062,1759589471829,-500.0,0.00020547,2]
[389140063,1759589471839,-2675.96,0.00020547,2]
[389140064,1759589471849,-1416.16,0.00020547,2]
[389140065,1759589471860,-691.83,0.00020547,2]
[389140066,1759589471870,-500.0,0.00020547,2]
[389140067,1759589471880,-1336.13,0.00020547,2]
[389140068,1759589471890,-403.83423856,0.00020547,2]
[389140069,1759589471900,-500.0,0.00020547,2]
[389140070,1759589471909,-500.0,0.00020547,2]
[389140071,1759589471919,-1009.2,0.00020547,2]
[389140072,1759589471928,-500.0,0.00020547,2]
[389140073,1759589471938,-500.0,0.00020547,2]
[389140074,1759589471948,-3904.23,0.00020547,2]
[389140075,1759589471958,-2385.0,0.00020547,2]
[389140076,1759589471968,-513.88313056,0.00020547,2]
[389140077,1759589471977,-500.0,0.00020547,2]
[389140078,1759589471987,-500.0,0.00020547,2]
[389140079,1759589471996,-2210.29,0.00020547,2]
[389140080,1759589472006,-620.44,0.00020547,2]
[389140081,1759589472016,-500.0,0.00020547,2]
[389140082,1759589472025,-500.0,0.00020547,2]
[389140083,1759589472035,-556.0,0.00020547,2]
[389140084,1759589472045,-930.35,0.00020547,2]
[389140085,1759589472055,-500.0,0.00020547,2]
[389140086,1759589472065,-500.0,0.00020547,2]
[389140087,1759589472074,-538.45,0.00020547,2]
[389140088,1759589472084,-503.46,0.00020547,2]
[389140089,1759589472093,-776.48,0.00020547,2]
[389140090,1759589472102,-500.0,0.00020547,2]
[389140091,1759589472111,-500.0,0.00020547,2]
[389140092,1759589472122,-500.0,0.00020547,2]
[389140093,1759589472132,-500.0,0.00020547,2]
[389140094,1759589472141,-2787.19,0.00020547,2]
[389140095,1759589472151,-733.8,0.00020547,2]
[389140096,1759589472160,-500.0,0.00020547,2]
[389140097,1759589472170,-500.0,0.00020547,2]
[389140098,1759589472179,-500.0,0.00020547,2]
[389140099,1759589472189,-500.0,0.00020547,2]
[389140100,1759589472199,-1669.31,0.00020547,2]
[389140101,1759589472208,-539.59,0.00020547,2]
[389140102,1759589472218,-500.0,0.00020547,2]
[389140103,1759589472227,-617.37,0.00020547,2]
[389140104,1759589472237,-564.84,0.00020547,2]
[389140105,1759589472246,-526.77,0.00020547,2]
[389140106,1759589472256,-544.08,0.00020547,2]
[389140107,1759589472266,-500.0,0.00020547,2]
[389140108,1759589472276,-500.0,0.00020547,2]
[389140109,1759589472286,-500.0,0.00020547,2]
[389140110,1759589472296,-901.55,0.00020547,2]
[389140111,1759589472306,-551.71955659,0.00020547,2]
[389140112,1759589472315,-4067.83,0.00020547,2]
[389140113,1759589472325,-985.62,0.00020547,2]
[389140114,1759589472335,-676.23,0.00020547,2]
[389140115,1759589472345,-535.2,0.00020547,2]
[389140116,1759589472355,-744.7,0.00020547,2]
[389140117,1759589472364,-500.0,0.00020547,2]
[389140118,1759589472375,-500.0,0.00020547,2]
[389140119,1759589472385,-500.0,0.00020547,2]
[389140120,1759589472396,-544.48,0.00020547,2]
[389140121,1759589472405,-500.0,0.00020547,2]
[389140122,1759589472415,-2227.84,0.00020547,2]
[389140123,1759589472424,-1208.08,0.00020547,2]
[389140124,1759589472434,-500.0,0.00020547,2]
[389140125,1759589472443,-2117.71,0.00020547,2]
[389140126,1759589472453,-500.0,0.00020547,2]
[389140127,1759589472463,-1343.97,0.00020547,2]
[389140128,1759589472472,-500.0,0.00020547,2]
[389140129,1759589472482,-829.2,0.00020547,2]
[389140130,1759589472492,-267.37020531,0.00020547,2]
[389140131,1759589472503,-1118.9,0.00020547,2]
[389140132,1759589472512,-1781.89,0.00020547,2]
[389140133,1759589472522,-367.61138401,0.00020547,2]
[389140134,1759589472531,-1021.18,0.00020547,2]
[389140135,1759589472541,-712.46,0.00020547,2]
[389140136,1759589472551,-1332.73,0.00020547,2]
[389140137,1759589472560,-500.0,0.00020547,2]
[389140138,1759589472570,-1325.7,0.00020547,2]
[389140139,1759589472584,-1990.33,0.00020547,2]
[389140140,1759589472594,-500.0,0.00020547,2]
[389140141,1759589472603,-500.0,0.00020547,2]
[389140142,1759589472612,-627.07,0.00020547,2]
[389140143,1759589472624,-771.96,0.00020547,2]
[389140144,1759589472634,-500.0,0.00020547,2]
[389140145,1759589472644,-1279.26,0.00020547,2]
[389140146,1759589472656,-949.02328076,0.00020547,2]
[389140147,1759589473058,-224.05671924,0.00020547,2]
[389140148,1759589473068,-265.86667692,0.00020547,2]
[389140149,1759589473078,-500.0,0.00020547,2]
[389140150,1759589473087,-500.0,0.00020547,2]
[389140151,1759589473097,-771.09,0.00020547,2]
[389140152,1759589473107,-893.89,0.00020547,2]
[389140153,1759589473116,-5252.38281098,0.00020547,2]
[389140154,1759589473131,-410.0,0.00020547,2]
[389140155,1759589473143,-611.65718902,0.00020547,2]
[389140156,1759589473152,-500.0,0.00020547,2]
[389140157,1759589473162,-487.98281098,0.00020547,2]
[389140158,1759589473173,-151.25718902,0.00020547,2]
[389140159,1759589473182,-394.85253813,0.00020547,2]
[389140160,1759589473192,-2342.12,0.00020547,2]
[389140161,1759589473202,-500.0,0.00020547,2]
[389140162,1759589473212,-1318.49,0.00020547,2]
[389140163,1759589473221,-1288.12,0.00020547,2]
[389140164,1759589473231,-937.29,0.00020547,2]
[389140165,1759589473241,-500.0,0.00020547,2]
[389140166,1759589473250,-802.84,0.00020547,2]
[389140167,1759589473259,-919.57,0.00020547,2]
[389140168,1759589473269,-1053.27,0.00020547,2]
[389140169,1759589473278,-500.0,0.00020547,2]
[389140170,1759589473287,-500.0,0.00020547,2]
[389140171,1759589473296,-1133.21,0.00020547,2]
[389140172,1759589473306,-1400.27,0.00020547,2]
[389140173,1759589473316,-500.0,0.00020547,2]
[389140174,1759589473325,-975.97,0.00020547,2]
[389140175,1759589473336,-576.97027057,0.00020547,2]
[389140176,1759589473346,-716.96,0.00020547,2]
[389140177,1759589473355,-403.99493144,0.00020547,2]
[389140178,1759589473365,-500.0,0.00020547,2]
[389140179,1759589473375,-930.1,0.00020547,2]
[389140180,1759589473385,-500.0,0.00020547,2]
[389140181,1759589473394,-500.0,0.00020547,2]
[389140182,1759589473404,-1214.22,0.00020547,2]
[389140183,1759589473413,-500.0,0.00020547,2]
[389140184,1759589473423,-2313.54,0.00020547,2]
[389140185,1759589473433,-2988.06,0.00020547,2]
[389140186,1759589473443,-500.0,0.00020547,2]
[389140187,1759589473452,-601.81,0.00020547,2]
[389140188,1759589473462,-1032.15,0.00020547,2]
[389140189,1759589473472,-500.0,0.00020547,2]
[389140190,1759589473481,-791.54,0.00020547,2]
[389140191,1759589473492,-267.94256622,0.00020547,2]
[389140192,1759589473647,-500.0,0.00019178,2]
[389140193,1759589473657,-151.0,0.00019452,2]
[389140194,1759589473666,-151.0,0.00019726,2]
[389140195,1759589473675,-151.0,0.0002,2]
[389140196,1759589473685,-161.39665758,0.00020274,2]
[389140197,1759589473694,-232.05743378,0.00020547,2]
[389140198,1759589473703,-4536.97702613,0.00020547,2]
[389140199,1759589475233,5000.0,0.0001859,2]
[389140200,1759589479856,4097.27916356,0.0001859,2]
[389140201,1759589501102,-576.43923875,0.00018773,2]
[389140202,1759589501136,-500.0,0.00018773,2]
[389140203,1759589501172,-203.69,0.0001879,3]
[389140204,1759589502776,-5000.0,0.0001859,2]
[389140205,1759589509113,-611.09,0.0001879,3]
[389140206,1759589509293,-7397.10743549,0.000188,2]
[389140207,1759589510876,-5000.0,0.00018612,2]
[389140208,1759589510922,-0.01,0.000188,2]
[389140209,1759589512873,-10000.01,0.000188,2]
[389140210,1759589533384,5000.0,0.00018506,2]
[389140212,1759589548857,976.52769514,0.0001859,2]
[389140214,1759589577574,-500.0,0.00018773,2]
[389140215,1759589577605,-335.05810687,0.00018773,2]
[389140216,1759589577638,-300.0,0.00018799,2]
[389140217,1759589577672,-1200.0,0.00018799,2]
[389140218,1759589577703,-172.41509328,0.00018799,2]
[389140219,1759589577736,-444.61086761,0.00018799,2]
[389140220,1759589577771,-550.046223,0.00018799,2]
[389140221,1759589578082,-7019.23172334,0.000188,2]
[389140222,1759589578099,-10000.01,0.000188,2]
[389140223,1759589578130,-10000.01,0.000188,2]
[389140224,1759589578284,-10000.01,0.000188,2]
[389140225,1759589583482,-300.0,0.00018799,2]
[389140226,1759589583544,-9400.01,0.000188,2]
[389140227,1759589583615,-10000.01,0.000188,2]
[389140228,1759589583772,-10000.01,0.000188,2]
[389140229,1759589583908,-10000.01,0.000188,2]
[389140230,1759589584037,-10000.01,0.000188,2]
[389140231,1759589597509,-5000.0,0.00018612,2]
[389140232,1759589597551,-0.01,0.0001879,3]
[389140233,1759589597650,-293.45,0.0001879,3]
[389140234,1759589597684,-500.0,0.00018799,2]
[389140235,1759589597722,-500.0,0.00018799,2]
[389140236,1759589597756,-571.17454285,0.00018799,2]
[389140237,1759589597789,-381.19953122,0.00018799,2]
[389140238,1759589597820,-500.0,0.00018799,2]
[389140239,1759589597851,-375.2175631,0.00018799,2]
[389140240,1759589597881,-297.48560079,0.00018799,2]
[389140241,1759589597911,-231.9605532,0.00018799,2]
[389140242,1759589597944,-500.0,0.00018799,2]
[389140243,1759589597977,-500.0,0.00018799,2]
[389140244,1759589598010,-210.79393065,0.00018799,2]
[389140245,1759589598538,-277.44655638,0.00018799,2]
[389140246,1759589599531,-222.16217235,0.00018799,2]
[389140247,1759589599586,-9555.6856553,0.000188,2]
[389140248,1759589599704,-10000.01,0.000188,2]
[389140249,1759589603575,-5000.0,0.00018612,2]
[389140250,1759589603620,-0.01,0.0001879,3]
[389140251,1759589605823,-880.37,0.0001879,3]
[389140252,1759589605897,-8239.27,0.000188,2]
[389140253,1759589607833,-10000.01,0.000188,2]
[389140254,1759589608057,-10000.01,0.000188,2]
[389140255,1759589608182,-10000.01,0.000188,2]
[389140256,1759589608310,-10000.01,0.000188,2]
[389140257,1759589608484,-10000.01,0.000188,2]
[389140258,1759589608686,-10000.01,0.000188,2]
[389140259,1759589608811,-10000.01,0.000188,2]
[389140260,1759589608942,-10000.01,0.000188,2]
[389140261,1759589611663,-10000.01,0.000188,2]
[389140262,1759589611802,-10000.01,0.000188,2]
[389140263,1759589611949,-10000.01,0.000188,2]
[389140264,1759589612308,-10000.01,0.000188,2]
[389140265,1759589612329,-10000.01,0.000188,2]
[389140266,1759589612361,-10000.01,0.000188,2]
[389140267,1759589612524,-10000.01,0.000188,2]
[389140268,1759589612660,-10000.01,0.000188,2]
[389140269,1759589618261,5000.0,0.00018505,2]
[389140270,1759589618891,4000.0,0.00025,30]
[389140271,1759589626235,5000.0,0.00018505,2]
[389140272,1759589641941,0.01,0.00018505,2]
[389140273,1759589645997,-4999.99,0.00018505,2]
[389140274,1759589646263,-300.0,0.00018798,2]
[389140275,1759589646298,-500.0,0.00018799,2]
[389140276,1759589646331,-261.02513852,0.00018799,2]
[389140277,1759589646364,-500.0,0.00018799,2]
[389140278,1759589646395,-500.0,0.00018799,2]
[389140279,1759589646428,-500.0,0.00018799,2]
[389140280,1759589646459,-500.0,0.00018799,2]
[389140281,1759589646491,-500.0,0.00018799,2]
[389140282,1759589646522,-500.0,0.00018799,2]
[389140283,1759589646556,-500.0,0.00018799,2]
[389140284,1759589646588,-265.86278877,0.00018799,2]
[389140285,1759589646621,-147.40457527,0.00018799,2]
[389140286,1759589647143,-51.42499488,0.00018799,2]
[389140287,1759589647176,-500.0,0.00018799,2]
[389140288,1759589647212,-237.39436472,0.00018799,2]
[389140289,1759589647245,-370.73473871,0.00018799,2]
[389140290,1759589647280,-500.0,0.00018799,2]
[389140291,1759589647312,-500.0,0.00018799,2]
[389140292,1759589647346,-500.0,0.00018799,2]
[389140293,1759589647379,-500.0,0.00018799,2]
[389140294,1759589647413,-500.0,0.00018799,2]
[389140295,1759589647447,-500.0,0.00018799,2]
[389140296,1759589647482,-500.0,0.00018799,2]
[389140297,1759589647519,-197.3050139,0.00018799,2]
[389140298,1759589647743,-500.0,0.00018799,2]
[389140299,1759589648684,-9368.90838523,0.000188,2]
[389140300,1759589648707,-10000.01,0.000188,2]
[389140301,1759589648732,-10000.01,0.000188,2]
[389140302,1759589648808,-10000.01,0.000188,2]
[389140303,1759589648836,-10000.01,0.000188,2]
[389140304,1759589648859,-10000.01,0.000188,2]
[389140305,1759589649875,-500.0,0.00018799,2]
[389140306,1759589649909,-500.0,0.00018799,2]
[389140307,1759589649943,-500.0,0.00018799,2]
[389140308,1759589649975,-200.0,0.00018799,2]
[389140309,1759589650009,-500.0,0.00018799,2]
[389140310,1759589650044,-500.0,0.00018799,2]
[389140311,1759589650078,-553.3184074,0.00018799,2]
[389140312,1759589650112,-500.0,0.00018799,2]
[389140313,1759589650144,-502.81412001,0.00018799,2]
[389140314,1759589650179,-500.0,0.00018799,2]
[389140315,1759589650459,-487.74494518,0.0001861,2]
[389140316,1759589651871,-4512.25505482,0.0001861,2]
[389140317,1759589651906,-475.49989036,0.00018799,2]
[389140318,1759589651956,-24.50010964,0.00018799,2]
[389140319,1759589652004,-614.51318185,0.00018799,2]
[389140320,1759589652037,-500.0,0.00018799,2]
[389140321,1759589652070,-500.0,0.00018799,2]
[389140322,1759589652102,-500.0,0.00018799,2]
[389140323,1759589652134,-500.0,0.00018799,2]
[389140324,1759589652166,-500.0,0.00018799,2]
[389140325,1759589652198,-426.99579052,0.00018799,2]
[389140326,1759589652399,-500.0,0.00018799,2]
[389140327,1759589652440,-500.0,0.00018799,2]
[389140328,1759589652479,-416.99205526,0.00018799,2]
[389140329,1759589652642,-83.00794474,0.00018799,2]
[389140330,1759589652680,-500.0,0.00018799,2]
[389140331,1759589652719,-549.48268604,0.00018799,2]
[389140332,1759589653036,-132.49063078,0.000188,2]
[389140333,1759589653054,-7735.02873844,0.000188,2]
[389140334,1759589653080,-10000.01,0.000188,2]
[389140335,1759589653098,-1151.94743142,0.000188,2]
[389140336,1759589653108,-500.0,0.000188,2]
[389140337,1759589653118,-300.0,0.000188,2]
[389140357,1759589672183,-500.0,0.00018799,2]
[389140358,1759589672216,-500.0,0.00018799,2]
[389140359,1759589672251,-500.0,0.00018799,2]
[389140360,1759589672283,-500.0,0.00018799,2]
[389140361,1759589672318,-500.0,0.00018799,2]
[389140362,1759589672352,-429.26526129,0.00018799,2]
[389140363,1759589672384,-500.0,0.00018799,2]
[389140364,1759589672420,-500.0,0.00018799,2]
[389140365,1759589672463,-500.0,0.00018799,2]
[389140366,1759589672498,-500.0,0.00018799,2]
[389140367,1759589672710,-500.0,0.00018799,2]
[389140368,1759589672744,-500.0,0.00018799,2]
[389140369,1759589672779,-500.0,0.00018799,2]
[389140370,1759589672810,-500.0,0.00018799,2]
[389140371,1759589672841,-500.0,0.00018799,2]
[389140372,1759589672875,-500.0,0.00018799,2]
[389140373,1759589672909,-500.0,0.00018799,2]
[389140374,1759589672942,-500.0,0.00018799,2]
[389140375,1759589672974,-500.0,0.00018799,2]
[389140376,1759589673008,-500.0,0.00018799,2]
[389140377,1759589673339,-141.47947742,0.00018799,2]
[389140378,1759589673365,-0.01,0.00018799,2]
[389140379,1759589674044,-87.03913632,0.00018799,2]
[389140380,1759589674081,-500.0,0.00018799,2]
[389140381,1759589674116,-500.0,0.00018799,2]
[389140382,1759589674148,-500.0,0.00018799,2]
[389140383,1759589674182,-349.03011199,0.00018799,2]
[389140384,1759589674215,-500.0,0.00018799,2]
[389140385,1759589674246,-500.0,0.00018799,2]
[389140386,1759589674278,-500.0,0.00018799,2]
[389140387,1759589674313,-500.0,0.00018799,2]
[389140388,1759589674344,-500.0,0.00018799,2]
[389140389,1759589674375,-500.0,0.00018799,2]
[389140390,1759589674559,-500.0,0.00018799,2]
[389140391,1759589674592,-500.0,0.00018799,2]
[389140392,1759589674626,-500.0,0.00018799,2]
[389140393,1759589674660,-500.0,0.00018799,2]
[389140394,1759589674693,-500.0,0.00018799,2]
[389140395,1759589674725,-500.0,0.00018799,2]
[389140396,1759589674761,-500.0,0.00018799,2]
[389140397,1759589674796,-500.0,0.00018799,2]
[389140398,1759589674828,-500.0,0.00018799,2]
[389140399,1759589674860,-500.0,0.00018799,2]
[389140400,1759589675295,-150.96988801,0.00018799,2]
[389140401,1759589675320,-0.01,0.00018799,2]
[389140402,1759589676058,-349.02011199,0.00018799,2]
[389140403,1759589676092,-500.0,0.00018799,2]
[389140404,1759589676127,-500.0,0.00018799,2]
[389140405,1759589676163,-650.0,0.00018799,2]
[389140406,1759589676353,-500.0,0.00018799,2]
[389140407,1759589676389,-500.0,0.00018799,2]
[389140408,1759589676424,-500.0,0.00018799,2]
[389140409,1759589676461,-500.0,0.00018799,2]
[389140410,1759589676495,-248.00000001,0.00018799,2]
[389140411,1759589676707,-1505.969776,0.00018882,2]
[389140412,1759589678093,-3494.030224,0.00018882,2]
[389140413,1759589678140,-3011.949552,0.00018882,2]
[389140414,1759589680296,-1988.050448,0.00018882,2]
[389140415,1759589687217,500.0,0.00018799,2]
[389140416,1759589689056,5000.0,0.00018882,2]
[389140420,1759589712553,-170.81586696,0.00018798,2]
[389140421,1759589712588,-1200.0,0.00018798,2]
[389140422,1759589713061,5000.0,0.000185,2]
[389140423,1759589736020,2258.37826608,0.00018799,2]
[389140424,1759589736052,1765.10403878,0.00018799,2]
[389140426,1759589744307,204.90416361,0.0001869,2]
[389140427,1759589746663,-5271.63353153,0.00018799,2]
[389140428,1759589750721,-10000.01,0.00018799,2]
[389140429,1759589754726,-10000.01,0.00018799,2]
[389140431,1759589758808,-10000.01,0.00018799,2]
[389140432,1759589762871,300.0,0.00018798,2]
[389140434,1759589775889,9700.01,0.000187,2]
[389140435,1759589775921,10000.01,0.000187,2]
[389140436,1759589782981,-459.81,0.0001869,3]
[389140437,1759589783282,-9080.39,0.000187,2]
[389140438,1759589783447,-10000.01,0.000187,2]
[389140439,1759589783599,-10000.01,0.000187,2]
[389140440,1759589783728,-10000.01,0.000187,2]
[389140441,1759589783884,-10000.01,0.000187,2]
[389140442,1759589784975,-10000.01,0.000187,2]
[389140443,1759589785120,-10000.01,0.000187,2]
[389140444,1759589788976,-10000.01,0.000187,2]
[389140445,1759589789131,-10000.01,0.000187,2]
[389140446,1759589789391,-10000.01,0.000187,2]
[389140447,1759589789521,-10000.01,0.000187,2]
[389140448,1759589789653,-10000.01,0.000187,2]
[389140449,1759589809118,-666.0,0.00018113,2]
[389140450,1759589809153,-229.9,0.0001869,3]
[389140451,1759589809192,-689.75,0.0001869,3]
[389140452,1759589809227,-500.0,0.00018699,2]
[389140453,1759589809260,-477.37394355,0.00018699,2]
[389140454,1759589809292,-196.76695211,0.00018699,2]
[389140455,1759589809324,-500.0,0.00018699,2]
[389140456,1759589809358,-500.0,0.00018699,2]
[389140457,1759589809390,-500.0,0.00018699,2]
[389140458,1759589809424,-500.0,0.00018699,2]
[389140459,1759589809542,-500.0,0.00018699,2]
[389140460,1759589809573,-500.0,0.00018699,2]
[389140461,1759589809606,-500.0,0.00018699,2]
[389140462,1759589809639,-500.0,0.00018699,2]
[389140463,1759589809675,-500.0,0.00018699,2]
[389140464,1759589809706,-500.0,0.00018699,2]
[389140465,1759589809739,-500.0,0.00018699,2]
[389140466,1759589809770,-275.30234893,0.00018699,2]
[389140467,1759589809809,-500.0,0.00018699,2]
[389140468,1759589809843,-500.0,0.00018699,2]
[389140469,1759589810002,-500.0,0.00018699,2]
[389140470,1759589810036,-389.13853407,0.00018699,2]
[389140471,1759589810070,-500.0,0.00018699,2]
[389140472,1759589810105,-500.0,0.00018699,2]
[389140473,1759589810136,-444.96741393,0.00018699,2]
[389140474,1759589810170,-500.0,0.00018699,2]
[389140475,1759589810202,-446.8014228,0.00018699,2]
[389140476,1759589810428,-500.0,0.00018699,2]
[389140477,1759589810463,-354.0268984,0.00018699,2]
[389140478,1759589810499,-158.18015887,0.00018699,2]
[389140479,1759589810530,-500.0,0.00018699,2]
[389140480,1759589810614,-500.0,0.00018699,2]
[389140481,1759589810649,-500.0,0.00018699,2]
[389140482,1759589810684,-500.0,0.00018699,2]
[389140483,1759589810720,-500.0,0.00018699,2]
[389140484,1759589810755,-500.0,0.00018699,2]
[389140485,1759589810793,-500.0,0.00018699,2]
[389140486,1759589810827,-500.0,0.00018699,2]
[389140487,1759589810860,-500.0,0.00018699,2]
[389140488,1759589810895,-500.0,0.00018699,2]
[389140489,1759589810930,-500.0,0.00018699,2]
[389140490,1759589811094,-500.0,0.00018699,2]
[389140491,1759589811128,-500.0,0.00018699,2]
[389140492,1759589811162,-500.0,0.00018699,2]
[389140493,1759589811196,-500.0,0.00018699,2]
[389140494,1759589811230,-500.0,0.00018699,2]
[389140495,1759589811265,-500.0,0.00018699,2]
[389140496,1759589811299,-500.0,0.00018699,2]
[389140497,1759589811331,-455.82016904,0.00018699,2]
[389140498,1759589811364,-160.3415537,0.00018699,2]
[389140499,1759589812548,-346.31300527,0.000187,2]
[389140500,1759589812567,-500.0,0.000187,2]
[389140501,1759589812586,-455.82016904,0.000187,2]
[389140502,1759589812604,-160.3415537,0.000187,2]
[389140503,1759589812623,-1767.68655452,0.000187,2]
[389140504,1759589812681,-10000.01,0.000187,2]
[389140505,1759589812710,-10000.01,0.000187,2]
[389140507,1759589827271,-300.0,0.00018699,2]
[389140508,1759589827314,-9400.01,0.000187,2]
[389140509,1759589827523,-10000.01,0.000187,2]
[389140510,1759589827657,-10000.01,0.000187,2]
[389140511,1759589829125,-10000.01,0.000187,2]
[389140512,1759589833211,-221.18,0.0001869,3]
[389140513,1759589833246,-946.42023455,0.00018699,2]
[389140514,1759589833323,-7664.8095309,0.000187,2]
[389140515,1759589835206,-10000.01,0.000187,2]
[389140516,1759589853812,-663.59,0.0001869,3]
[389140517,1759589853849,-1200.0,0.00018699,2]
[389140518,1759589853889,-436.05483522,0.00018699,2]
[389140519,1759589853927,-608.98736434,0.00018699,2]
[389140520,1759589853969,-500.0,0.00018699,2]
[389140521,1759589854010,-332.12173781,0.00018699,2]
[389140522,1759589854049,-500.0,0.00018699,2]
[389140523,1759589854088,-500.0,0.00018699,2]
[389140524,1759589854124,-159.10703725,0.00018699,2]
[389140525,1759589854398,-200.28805076,0.00018699,2]
[389140526,1759589855811,-413.82430679,0.00018699,2]
[389140527,1759589855848,-500.0,0.00018699,2]
[389140528,1759589855884,-500.0,0.00018699,2]
[389140529,1759589855921,-381.39520832,0.00018699,2]
[389140530,1759589856049,-6409.57096978,0.000187,2]
[389140531,1759589856095,-10000.01,0.000187,2]
[389140532,1759589856373,-10000.01,0.000187,2]
[389140533,1759589857456,-10000.01,0.000187,2]
[389140534,1759589857699,-10000.01,0.000187,2]
[389140535,1759589857971,-10000.01,0.000187,2]
[389140536,1759589863380,-10000.01,0.000187,2]
[389140537,1759589863709,-10000.01,0.000187,2]
[389140538,1759589863728,-10000.01,0.000187,2]
[389140539,1759589863765,-10000.01,0.000187,2]
[389140540,1759589863922,-10000.01,0.000187,2]
[389140541,1759589864045,-10000.01,0.000187,2]
[389140542,1759589864153,-10000.01,0.000187,2]
[389140543,1759589871489,-178.61745961,0.00018699,2]
[389140544,1759589871524,-500.0,0.00018699,2]
[389140545,1759589871595,-8642.77508078,0.000187,2]
[389140546,1759589875504,-300.0,0.00018699,2]
[389140547,1759589875551,-9400.01,0.000187,2]
[389140550,1759589990750,-5000.0,0.00018327,2]
[389140551,1759589990792,-0.01,0.00018412,2]
[389140552,1759589990993,-165.03515382,0.00018412,2]
[389140553,1759589991028,-4669.93969236,0.00018512,2]
[389140554,1759589991077,-330.06030764,0.00018512,2]
[389140555,1759589992624,-181.49,0.000186,2]
[389140556,1759589992656,-300.0,0.00018699,2]
[389140557,1759589992688,-2565.06686399,0.000187,2]
[389140558,1759589992750,-3906.89627202,0.000187,2]
[389140560,1759589996623,-5000.0,0.00018414,2]
[389140561,1759589996669,-0.01,0.000187,2]
[389140562,1759590064839,155.805852,0.000245,30]
[389140563,1759590065348,155.805852,0.00024275,30]
[389140564,1759590128090,-786.5490695,0.00018196,2]
[389140565,1759590128126,-500.0,0.000182,2]
[389140566,1759590128166,-2426.911861,0.00018513,2]
[389140567,1759590128327,-2573.088139,0.00018513,2]
[389140568,1759590129925,-300.0,0.00018698,2]
[389140569,1759590129962,-300.0,0.00018699,2]
[389140570,1759590129997,-300.0,0.00018699,2]
[389140571,1759590130033,-300.0,0.00018699,2]
[389140572,1759590130069,-1200.0,0.00018699,2]
[389140573,1759590130103,-299.99,0.000187,2]
[389140574,1759590130274,-4600.03,0.000187,2]
[389140575,1759590133983,-3400.42923278,0.00018513,2]
[389140576,1759590134039,-3199.15153444,0.000187,2]